bitfinex-derivatives/quotes_ETHF0:USTF0_20250107
["timestamp","ask_amount","ask_price","bid_price","bid_amount"]
[1736255786942,0.41240556,3637.1,3637.0,42.07297942]
[1736255788247,2.15848342,3637.1,3637.0,42.07297942]
[1736255789245,2.15848342,3637.1,3637.0,41.07496]
[1736255789451,2.15848342,3637.3,3637.0,43.01118782]
[1736255789747,2.15848342,3637.3,3637.2,0.27495]
[1736255790144,1.59672,3637.6,3637.3,0.27493]
[1736255790449,1.3218,3637.6,3637.3,0.27493]
[1736255790750,1.59672,3637.6,3637.3,0.27493]
[1736255791043,1.3218,3637.6,3637.4,0.27493]
[1736255792047,0.41252419,3637.5,3637.4,0.27493]
[1736255794047,3.64873836,3637.5,3637.1,0.4175]
[1736255794249,3.64873836,3637.5,3637.4,0.27493]
[1736255798146,4.12971417,3637.6,3637.5,0.27492]
[1736255799052,4.40463417,3637.6,3637.4,0.27493]
[1736255799447,6.75340931,3637.6,3637.2,0.4606]
[1736255799649,0.27493,3637.5,3637.3,0.27493]
[1736255799844,7.02832931,3637.6,3637.4,0.27493]
[1736255800052,7.02832931,3637.6,3637.2,0.4606]
[1736255800053,0.27493,3637.5,3637.3,0.27493]
[1736255801057,3.51114417,3637.5,3637.3,0.27493]
[1736255803354,3.51114417,3637.5,3637.2,0.4606]
[1736255803555,3.23621417,3637.4,3637.3,0.27494]
[1736255806450,2.15644164,3637.4,3637.3,0.27494]
[1736255807664,3.23621417,3637.5,3637.4,0.27493]
[1736255809359,4.23419708,3637.5,3637.4,0.27493]
[1736255810663,4.23419708,3637.5,3637.2,0.4606]
[1736255810959,4.23419708,3637.5,3637.4,0.27493]
[1736255811761,3.23621417,3637.5,3637.4,0.27493]
[1736255812149,3.6487224,3637.5,3637.4,0.27493]
[1736255813462,3.23621417,3637.5,3637.4,0.27493]
[1736255814755,4.23419708,3637.6,3637.5,0.27492]
[1736255816061,1.41048512,3637.6,3637.5,0.27492]
[1736255816954,1.41048512,3637.6,3637.2,0.4606]
[1736255817255,0.4309,3637.5,3637.4,0.27493]
[1736255818661,0.27493,3637.4,3637.2,0.73554]
[1736255818860,0.27495,3637.2,3636.9,0.27497]
[1736255819056,0.99798291,3637.0,3636.9,0.27497]
[1736255819255,0.99798291,3637.0,3636.9,41.07497]
[1736255819459,1.44218291,3637.0,3636.9,41.07497]
[1736255820263,1.71714291,3637.0,3636.9,41.07497]
[1736255820459,1.44218291,3637.0,3636.9,41.07497]
[1736255820655,1.85468512,3637.0,3636.9,41.07497]
[1736255820862,2.12964512,3637.0,3636.9,40.8]
[1736255821467,1.85468512,3637.0,3636.9,41.07497]
[1736255821861,6.17068996,3637.0,3636.9,41.07497]
[1736255824165,6.06046803,3637.0,3636.3,4.30125918]
[1736255824367,1.27299291,3636.4,3636.3,4.30125918]
[1736255824566,0.99798291,3636.4,3636.3,4.30125918]
[1736255824867,0.99798291,3636.4,3636.3,45.10125918]
[1736255825058,0.99798291,3636.4,3636.3,45.37626918]
[1736255825263,4.20578291,3636.6,3636.3,46.09924209]
[1736255825565,5.01869234,3636.4,3636.3,40.8]
[1736255825765,5.01869234,3636.4,3636.3,41.07501]
[1736255826166,5.01869234,3636.4,3636.3,42.07299291]
[1736255826762,2.16129941,3636.4,3636.3,41.07501]
[1736255827862,3.24194912,3636.4,3636.3,41.07501]
[1736255828662,4.23993203,3636.5,3636.3,40.8]
[1736255828861,4.23993203,3636.5,3636.4,0.27501]
[1736255829266,4.23993203,3636.5,3636.3,40.8]
[1736255829462,0.72731,3636.4,3636.3,40.8]
[1736255830962,0.4523,3636.4,3635.9,4.30125918]
[1736255831169,1.27302291,3636.0,3635.9,4.30125918]
[1736255831563,1.27302291,3636.0,3635.9,45.10125918]
[1736255831766,1.27302291,3636.0,3635.9,40.8]
[1736255833169,6.00350092,3636.0,3635.9,40.8]
[1736255834365,1.68552512,3636.0,3635.9,40.8]
[1736255836464,4.9208127,3636.0,3635.9,40.8]
[1736255837872,5.3743127,3636.0,3635.9,40.8]
[1736255839269,4.96181049,3636.0,3635.9,40.8]
[1736255839464,1.72652291,3636.0,3635.9,40.8]
[1736255841176,5.37232334,3636.0,3635.9,40.8]
[1736255842776,4.95960127,3636.0,3635.9,40.8]
[1736255843877,1.72652291,3636.0,3635.9,40.8]
[1736255845172,3.88027857,3636.0,3635.9,40.8]
[1736255847165,2.15375566,3636.0,3635.9,41.07504]
[1736255847571,2.42879566,3636.0,3635.9,40.8]
[1736255847775,2.88769566,3636.0,3635.9,41.07504]
[1736255847973,2.61265566,3636.0,3635.9,40.8]
[1736255848175,2.61265566,3636.0,3635.9,41.07504]
[1736255848176,2.15375566,3636.0,3635.9,41.07504]
[1736255848977,2.42879566,3636.0,3635.9,41.07504]
[1736255849377,0.27504,3636.0,3635.9,41.07504]
[1736255849975,0.99798291,3636.1,3635.9,40.8]
[1736255850176,0.99798291,3636.1,3636.0,1.13874]
[1736255850177,1.27302291,3636.1,3636.0,1.13874]
[1736255850370,1.27302291,3636.1,3636.0,1.2884]
[1736255851080,1.27302291,3636.1,3636.0,1.56344]
[1736255852174,1.27301291,3636.1,3636.0,1.56344]
[1736255853176,1.27301291,3636.1,3636.0,1.2884]
[1736255853681,1.27301291,3636.1,3636.0,1.56344]
[1736255853885,1.27301291,3636.1,3636.0,1.2884]
[1736255856680,0.27504,3636.0,3635.9,40.8]
[1736255858586,2.4296595,3636.0,3635.9,40.8]
[1736255862182,3.91773327,3636.0,3635.9,40.8]
[1736255863475,4.58170727,3636.0,3635.9,40.8]
[1736255864590,4.58170727,3636.0,3635.9,41.07504]
[1736255865690,4.58170727,3636.0,3635.9,40.8]
[1736255865985,4.58170727,3636.0,3635.9,41.07504]
[1736255866585,4.99440009,3636.0,3635.9,41.07504]
[1736255868789,0.68773282,3636.0,3635.9,41.07504]
[1736255869388,0.68773282,3636.0,3635.9,40.8]
[1736255869689,0.68773282,3636.0,3635.9,41.07504]
[1736255869890,0.68773282,3636.0,3635.9,40.8]
[1736255870382,0.68773282,3636.0,3635.9,41.07504]
[1736255871493,10.68338093,3636.0,3635.9,41.07504]
[1736255872988,10.68338093,3636.0,3635.9,40.8]
[1736255873991,5.30004684,3636.0,3635.9,40.8]
[1736255874291,5.30004684,3636.0,3635.9,41.07504]
[1736255875194,0.68773282,3636.0,3635.9,41.07504]
[1736255876289,5.30004684,3636.0,3635.9,41.07504]
[1736255881092,5.30004684,3636.0,3635.9,40.8]
[1736255881291,5.02500684,3636.0,3635.9,40.8]
[1736255881505,5.02500684,3636.0,3635.9,41.07504]
[1736255882401,2.94810684,3636.0,3635.9,46.07504]
[1736255882599,0.87410685,3636.0,3635.9,41.07504]
[1736255882799,4.329061,3636.0,3635.9,42.26085253]
[1736255883000,4.329061,3636.0,3635.9,41.07504]
[1736255884090,3.24549378,3636.0,3635.9,45.3741847]
[1736255885507,2.16288243,3636.0,3635.9,45.3741847]
[1736255886905,2.16288243,3636.1,3636.0,0.27504]
[1736255887107,2.16288243,3636.1,3636.0,5.38512291]
[1736255889307,0.52847283,3636.1,3636.0,10.38512291]
[1736255889602,4.329061,3636.5,3636.4,0.27501]
[1736255889603,3.1875211,3636.5,3636.4,0.27501]
[1736255889803,1.5854211,3636.5,3636.4,5.47877582]
[1736255890004,1.5646211,3636.5,3636.4,52.46351846]
[1736255890197,5.41132625,3636.7,3636.4,52.18850846]
[1736255890504,5.41132625,3636.7,3636.6,2.27095582]
[1736255890706,0.422,3637.4,3637.3,0.27494]
[1736255891106,0.422,3637.4,3637.3,41.07494]
[1736255909725,4.1032,3637.8,3637.3,41.07494]
[1736255910029,0.8954,3637.8,3637.7,0.27491]
[1736255910526,0.8954,3637.8,3637.7,41.07491]
[1736255915428,0.8954,3637.8,3637.7,42.07257537]
[1736255919736,0.8954,3637.8,3637.7,45.28037537]
[1736255926836,0.8954,3637.8,3637.7,46.27804074]
[1736255927034,0.86,3638.4,3638.3,0.27486]
[1736255927239,1.2932,3638.4,3638.3,0.27486]
[1736255929441,2.29086537,3638.4,3638.3,0.27486]
[1736255932940,1.2932,3638.4,3638.3,0.27486]
[1736255933847,1.2932,3638.4,3638.3,41.07486]
[1736255935745,1.2932,3638.4,3638.3,44.28266]
[1736255935946,1.2932,3638.4,3638.3,41.07486]
[1736255936146,1.2932,3638.4,3638.3,44.28266]
[1736255940843,4.30317275,3639.0,3638.3,44.0078]
[1736255941053,4.30317275,3639.0,3638.9,1.27248537]
[1736255941649,4.30317275,3639.0,3638.4,1.18468157]
[1736255941852,0.27485,3638.4,3638.1,0.27487]
[1736255942059,3.2078,3638.8,3638.0,0.99766537]
[1736255942060,1.43036537,3638.3,3638.0,0.99766537]
[1736255942353,0.4325,3638.2,3638.1,0.27488]
[1736255942552,0.4325,3638.2,3638.0,42.07254537]
[1736255942743,0.4325,3638.2,3638.1,0.27488]
[1736255945554,0.4325,3638.2,3638.0,42.07254537]
[1736255945745,0.4325,3638.2,3638.1,0.27488]
[1736255947355,0.4325,3638.2,3638.0,41.79766537]
[1736255947653,0.4325,3638.2,3638.1,0.27488]
[1736255950262,0.4325,3638.2,3638.0,41.79766537]
[1736255950458,0.4325,3638.2,3637.6,0.27491]
[1736255950459,0.2749,3637.9,3637.6,0.27491]
[1736255950762,0.2749,3637.9,3637.6,0.99766537]
[1736255950763,1.3214,3637.8,3637.6,0.99766537]
[1736255950963,1.3214,3637.8,3637.7,40.8]
[1736255951856,1.3214,3637.8,3637.7,41.07491]
[1736255952460,6.05082879,3637.8,3637.7,41.07491]
[1736255953667,4.56093274,3637.8,3637.7,41.07491]
[1736255954258,1.3214,3637.8,3637.7,41.07491]
[1736255956260,4.97463529,3637.8,3637.7,41.07491]
[1736255956862,3.65323529,3637.8,3637.7,42.07257537]
[1736255957056,3.2960536,3637.8,3637.7,42.34707537]
[1736255957263,2.8455536,3637.8,3637.7,42.34707537]
[1736255957463,2.8455536,3637.8,3637.7,43.53240506]
[1736255957772,2.8455536,3638.2,3637.7,46.30471339]
[1736255957965,2.8455536,3638.2,3638.1,1.27254537]
[1736255958469,2.8455536,3638.2,3638.1,42.07254537]
[1736255959069,0.8616,3638.4,3638.1,41.79766537]
[1736255959369,0.8616,3638.4,3638.3,0.27486]
[1736255960161,0.8616,3638.4,3638.3,1.27252537]
[1736255960369,4.77203641,3638.5,3638.4,0.27485]
[1736255960662,4.32103641,3638.5,3638.4,3.48265]
[1736255961870,0.99766537,3638.6,3638.5,0.27485]
[1736255962171,0.4519,3638.6,3638.5,0.27485]
[1736255962563,0.4519,3638.6,3638.5,1.27251537]
[1736255966768,0.4358,3638.8,3638.5,0.99766537]
[1736255967064,0.4358,3638.8,3638.7,1.27249537]
[1736255969368,0.4358,3638.8,3638.7,0.27483]
[1736255976378,0.4358,3638.8,3638.7,2.48447287]
[1736255978080,0.4358,3638.8,3638.7,43.28447287]
[1736255980781,0.4358,3638.8,3638.7,41.07483]
[1736255984285,0.71062,3638.8,3638.7,40.8]
[1736255984979,0.4358,3638.8,3638.7,40.8]
[1736255985178,0.71062,3638.8,3638.7,40.8]
[1736255985378,0.4358,3638.8,3638.7,40.8]
[1736255985580,0.84817927,3638.8,3638.7,41.07483]
[1736255986786,0.4358,3638.8,3638.7,41.07483]
[1736255986986,0.4358,3638.8,3638.7,40.8]
[1736255987186,0.4358,3638.8,3638.7,41.07483]
[1736255999493,0.84814663,3638.8,3638.7,41.07483]
[1736256000493,2.12019967,3638.8,3638.7,40.8]
[1736256000697,1.84537967,3638.8,3638.7,41.07483]
[1736256000891,6.43477025,3638.8,3638.7,41.07483]
[1736256002296,11.75679122,3638.8,3638.7,41.07483]
[1736256002890,11.75679122,3638.8,3638.7,40.8]
[1736256003802,0.27486,3638.4,3638.3,0.27486]
[1736256004295,1.15766,3638.4,3638.3,41.07486]
[1736256004601,1.15766,3638.4,3638.3,40.8]
[1736256005096,1.57000663,3638.4,3638.3,40.8]
[1736256005287,1.57000663,3638.4,3638.3,41.07486]
[1736256005495,1.57000663,3638.4,3638.3,40.8]
[1736256006196,5.81671602,3638.4,3638.3,40.8]
[1736256006501,5.54185602,3638.4,3638.3,40.8]
[1736256006699,5.54185602,3638.4,3638.3,41.07486]
[1736256007501,1.29514663,3638.4,3638.3,41.07486]
[1736256009101,0.8828,3638.4,3638.3,41.07486]
[1736256010601,1.29514663,3638.4,3638.3,41.07486]
[1736256012604,0.41234663,3638.4,3638.3,41.07486]
[1736256013309,4.32334704,3638.7,3638.3,40.8]
[1736256013508,4.32334704,3638.7,3638.6,4.47987304]
[1736256014209,4.32334704,3638.7,3638.6,45.27987304]
[1736256014707,0.4358,3638.8,3638.6,45.00503304]
[1736256014904,0.4358,3638.8,3638.7,0.27483]
[1736256015305,1.43303304,3638.8,3638.6,44.0078]
[1736256015505,1.43303304,3638.8,3638.5,4.29802249]
[1736256015710,0.27484,3638.7,3638.5,4.29802249]
[1736256016018,0.27484,3638.7,3638.5,40.8]
[1736256016600,0.27485,3638.5,3638.4,4.29802249]
[1736256017010,0.71495,3638.5,3638.4,4.29802249]
[1736256017311,0.27485,3638.4,3638.3,40.8]
[1736256017608,0.4565,3638.4,3638.3,40.8]
[1736256017998,0.4565,3638.4,3638.3,44.28266]
[1736256018912,5.19161378,3638.4,3638.3,44.28266]
[1736256019911,5.19161378,3638.4,3638.3,41.07486]
[1736256020108,5.19161378,3638.4,3638.3,40.8]
[1736256020308,0.86884805,3638.4,3638.3,40.8]
[1736256020513,0.86884805,3638.4,3638.3,41.07486]
[1736256020813,0.86884805,3638.4,3638.3,40.8]
[1736256021011,0.86884805,3638.4,3638.3,41.07486]
[1736256021517,5.19161378,3638.4,3638.3,41.07486]
[1736256021810,5.19161378,3638.4,3638.3,44.28266]
[1736256022300,0.4565,3638.4,3638.3,44.28266]
[1736256022704,0.4565,3638.4,3638.3,41.07486]
[1736256025306,0.4565,3638.4,3638.3,40.8]
[1736256026616,0.86891178,3638.4,3638.3,40.8]
[1736256028016,5.38892093,3638.4,3638.3,40.8]
[1736256028215,5.11407093,3638.4,3638.3,40.8]
[1736256028917,5.11407093,3638.4,3638.3,41.07486]
[1736256029811,10.51753234,3638.4,3638.3,41.07486]
[1736256030919,4.11071703,3638.4,3638.3,41.07486]
[1736256032120,3.69830525,3638.4,3638.3,41.07486]
[1736256032815,3.24180525,3638.4,3638.3,44.28266]
[1736256033312,0.41241178,3638.4,3638.3,44.0078]
[1736256033619,0.41241178,3638.4,3638.3,44.28266]
[1736256034518,2.16104902,3638.5,3638.3,48.31584126]
[1736256034721,2.16104902,3638.5,3638.4,2.4847589]
[1736256035921,3.24157353,3638.6,3638.5,0.27485]
[1736256035922,2.16104902,3638.6,3638.5,0.27485]
[1736256037020,2.16104902,3638.6,3638.5,3.48265]
[1736256037420,3.02404902,3638.8,3638.7,0.27483]
[1736256038316,2.16104902,3638.8,3638.7,0.27483]
[1736256038515,3.24157353,3638.9,3638.5,3.2078]
[1736256038719,3.24157353,3638.9,3638.8,0.27482]
[1736256041530,4.11407353,3639.0,3638.9,0.27482]
[1736256043024,4.52639357,3639.0,3638.9,0.27482]
[1736256045725,4.11407353,3639.0,3638.9,3.48262]
[1736256046024,4.11407353,3639.0,3638.9,44.28262]
[1736256047027,0.8725,3639.0,3638.9,44.0078]
[1736256047326,0.8725,3639.0,3638.9,44.28262]
[1736256047522,0.8725,3639.0,3638.9,44.0078]
[1736256048027,0.8725,3639.0,3638.7,4.30778751]
[1736256048230,3.2078,3638.9,3638.5,2.92438751]
[1736256048439,0.27484,3638.7,3638.5,2.92438751]
[1736256049023,0.27483,3638.8,3638.5,2.92438751]
[1736256049228,0.27483,3638.8,3638.5,3.19922751]
[1736256049929,3.24157353,3638.6,3638.5,0.27484]
[1736256050530,3.24157353,3638.6,3638.5,0.27485]
[1736256050730,3.51642353,3638.6,3638.4,40.8]
[1736256050938,0.4166,3638.5,3638.4,40.8]
[1736256051231,0.4166,3638.5,3638.4,41.07485]
[1736256051433,4.93494614,3638.5,3638.4,41.07485]
[1736256052637,4.52257353,3638.5,3638.4,41.07485]
[1736256053725,4.52257353,3638.5,3638.4,43.2847589]
[1736256055330,3.44045006,3638.5,3638.4,43.2847589]
[1736256056538,0.8528,3638.5,3638.4,43.2847589]
[1736256057332,3.24157353,3638.6,3638.5,0.27485]
[1736256057831,3.24157353,3638.6,3638.5,0.69005]
[1736256058236,3.05395449,3638.8,3638.5,0.4152]
[1736256058439,3.05395449,3638.8,3638.7,0.27483]
[1736256059533,0.8946,3638.8,3638.7,0.27483]
[1736256061343,0.8946,3638.8,3638.7,3.48263]
[1736256065849,0.447,3638.8,3638.7,3.48263]
[1736256066448,0.447,3638.8,3638.7,44.28263]
[1736256067354,0.447,3638.8,3638.7,45.27974436]
[1736256074748,2.60606411,3638.8,3638.7,45.27974436]
[1736256077451,0.447,3638.8,3638.7,45.27974436]
[1736256078750,2.60606411,3638.8,3638.7,45.27974436]
[1736256080657,2.15906411,3638.8,3638.7,45.27974436]
[1736256080951,2.15906411,3638.8,3638.7,46.27685872]
[1736256081161,2.15906411,3638.8,3638.7,46.46367731]
[1736256081458,2.15906411,3638.8,3638.7,46.27685872]
[1736256081764,2.15906411,3638.8,3638.7,47.46079167]
[1736256082156,2.15906411,3639.0,3638.7,53.64799706]
[1736256082360,2.15906411,3639.0,3638.9,1.27193436]
[1736256083753,3.03766411,3639.1,3639.0,0.27481]
[1736256084147,3.03766411,3639.1,3639.0,0.69671]
[1736256084858,0.8786,3639.1,3639.0,0.69671]
[1736256085354,0.8786,3639.1,3639.0,0.27481]
[1736256086657,0.8786,3639.1,3639.0,1.45931332]
[1736256086850,0.4601,3639.1,3639.0,1.45931332]
[1736256087861,0.4601,3639.1,3639.0,5.39831067]
[1736256088555,0.4225,3639.3,3639.0,5.12350067]
[1736256088750,2.15906411,3639.4,3639.2,4.20491436]
[1736256088957,2.15906411,3639.4,3639.3,0.27479]
[1736256089257,3.69329617,3639.5,3639.2,4.20491436]
[1736256089258,2.61376411,3639.5,3639.4,0.27478]
[1736256089457,2.61376411,3639.5,3639.4,1.27189436]
[1736256089958,2.61376411,3639.5,3639.4,42.07189436]
[1736256090760,0.4547,3639.5,3639.4,42.07189436]
[1736256091354,0.4547,3639.5,3639.4,45.27969436]
[1736256091759,2.61376411,3639.5,3639.4,45.27969436]
[1736256092758,0.4547,3639.5,3639.4,45.27969436]
[1736256094660,2.61283947,3639.5,3639.4,45.27969436]
[1736256095065,0.4547,3639.5,3639.4,45.27969436]
[1736256105284,0.4547,3639.5,3639.4,40.8]
[1736256105586,0.4547,3639.5,3639.1,6.45672074]
[1736256105789,0.27478,3639.4,3639.1,7.4538351]
[1736256105981,0.27478,3639.4,3639.1,48.5286351]
[1736256106182,0.4547,3639.5,3639.1,48.2538351]
[1736256106382,0.4547,3639.5,3639.2,0.27479]
[1736256106383,4.72880897,3639.4,3639.2,0.27479]
[1736256106587,4.72880897,3639.4,3639.3,0.99711436]
[1736256108386,5.00358897,3639.4,3639.3,0.99711436]
[1736256108586,4.72880897,3639.4,3639.3,0.99711436]
[1736256109687,0.41230447,3639.4,3639.3,0.99711436]
[1736256110088,0.41230447,3639.4,3639.3,1.27190436]
[1736256113485,4.73187152,3639.4,3639.3,1.27190436]
[1736256117583,0.41230447,3639.4,3639.3,1.27190436]
[1736256118781,5.18742273,3639.5,3639.3,0.99711436]
[1736256118985,5.18742273,3639.5,3639.4,0.27478]
[1736256119183,4.73272273,3639.5,3639.4,0.27478]
[1736256119386,4.73272273,3639.5,3639.4,0.71798]
[1736256119581,4.73272273,3639.5,3639.4,1.17218]
[1736256119790,4.73272273,3639.5,3639.4,2.35543211]
[1736256120795,2.16011579,3639.6,3639.5,0.27477]
[1736256120987,2.16011579,3639.6,3639.5,1.27188436]
[1736256121892,3.24017369,3639.7,3639.6,0.27476]
[1736256122696,3.24017369,3639.7,3639.4,0.99711436]
[1736256122896,3.24017369,3639.7,3639.2,9.66452074]
[1736256122897,0.8607,3639.6,3639.3,0.27478]
[1736256123104,0.8607,3639.6,3639.3,0.4479]
[1736256123291,4.73272273,3639.8,3639.3,0.4479]
[1736256123498,4.73272273,3639.8,3639.6,0.27476]
[1736256124694,4.73272273,3639.8,3639.4,0.4224]
[1736256124895,4.73272273,3639.8,3639.7,1.27187436]
[1736256126091,4.73272273,3639.8,3639.7,42.07187436]
[1736256128296,0.41230447,3639.8,3639.7,42.07187436]
[1736256131499,3.24001056,3639.8,3639.7,42.07187436]
[1736256133305,3.24001056,3639.8,3639.7,42.53207436]
[1736256134005,3.65222887,3639.8,3639.7,42.53207436]
[1736256136897,3.65222887,3639.8,3639.7,41.79711436]
[1736256138009,0.41221831,3639.8,3639.7,41.79711436]
[1736256138606,0.41221831,3639.8,3639.7,42.07187436]
[1736256139010,0.41221831,3639.8,3639.7,41.79711436]
[1736256139206,5.47175826,3639.9,3639.7,41.79711436]
[1736256139412,5.47175826,3639.9,3639.7,42.07187436]
[1736256140106,5.47175826,3639.9,3639.7,41.79711436]
[1736256140510,5.19701826,3639.9,3639.7,42.07187436]
[1736256140812,0.68696831,3639.8,3639.7,41.79711436]
[1736256142307,5.00738657,3639.8,3639.7,41.79711436]
[1736256144309,5.00738657,3639.8,3639.7,42.07187436]
[1736256144609,5.00738657,3639.8,3639.7,41.79711436]
[1736256147207,5.00738657,3639.8,3639.7,42.07187436]
[1736256147915,5.00738657,3639.8,3639.7,41.79711436]
[1736256149714,5.00738657,3639.8,3639.7,42.07187436]
[1736256151416,5.00738657,3639.8,3639.7,41.79711436]
[1736256152607,5.00738657,3639.8,3639.7,40.8]
[1736256153416,0.68696831,3639.8,3639.7,42.07187436]
[1736256153614,0.41221831,3639.8,3639.7,42.07187436]
[1736256154922,5.19626209,3639.9,3639.8,0.27475]
[1736256155914,5.6084804,3639.9,3639.8,0.27475]
[1736256159413,1.28881831,3639.9,3639.8,0.27475]
[1736256162123,1.28881831,3639.9,3639.8,0.69745]
[1736256163425,5.56901738,3639.9,3639.8,0.69745]
[1736256164225,5.12411738,3639.9,3639.8,0.69745]
[1736256165535,4.69241738,3639.9,3639.8,0.69745]
[1736256165730,4.69241738,3639.9,3639.8,1.12845]
[1736256166640,4.73664275,3639.9,3639.8,1.12845]
[1736256171346,4.73664275,3639.9,3639.8,0.69745]
[1736256172145,4.73664275,3639.9,3639.8,0.27475]
[1736256172938,4.73664275,3639.9,3639.7,42.07186436]
[1736256173139,0.4508,3639.8,3639.7,42.07186436]
[1736256174041,0.86301831,3639.8,3639.7,42.07186436]
[1736256177441,0.86301831,3639.8,3639.7,41.79711436]
[1736256179149,1.13776831,3639.8,3639.7,41.79711436]
[1736256179348,0.86301831,3639.8,3639.7,41.79711436]
[1736256180049,5.14403825,3639.8,3639.7,41.79711436]
[1736256180251,5.14403825,3639.8,3639.7,42.07187436]
[1736256180746,9.62370261,3639.8,3639.7,40.8]
[1736256180951,9.34895261,3639.8,3639.4,5.30392519]
[1736256181153,0.27477,3639.5,3639.4,5.30392519]
[1736256181452,0.27477,3639.5,3639.4,46.10392519]
[1736256181746,0.27477,3639.5,3639.4,41.79711436]
[1736256183252,4.55578994,3639.5,3639.4,41.79711436]
[1736256183451,4.96800825,3639.5,3639.4,41.79711436]
[1736256183646,4.96800825,3639.5,3639.4,40.8]
[1736256184452,10.36363888,3639.5,3639.4,40.8]
[1736256186052,10.08886888,3639.5,3639.3,0.99711436]
[1736256186255,0.70318,3639.4,3639.3,0.99711436]
[1736256186556,0.70318,3639.4,3639.3,41.79711436]
[1736256187552,10.79204888,3639.4,3639.3,42.07190436]
[1736256187951,10.08886888,3639.4,3639.3,42.07190436]
[1736256188450,10.08886888,3639.4,3639.3,42.49970436]
[1736256189154,3.24023935,3639.4,3639.3,42.49970436]
[1736256189654,3.24023935,3639.4,3639.3,42.95570436]
[1736256190256,2.16002204,3639.5,3639.3,46.98772519]
[1736256190444,2.16002204,3639.5,3639.4,0.27478]
[1736256191860,0.4339,3639.7,3639.6,0.27476]
[1736256192056,0.4339,3639.7,3639.6,1.27187436]
[1736256193753,4.08610191,3639.7,3639.6,1.27187436]
[1736256194447,4.08610191,3639.7,3639.6,4.47967436]
[1736256194952,0.4339,3639.7,3639.6,4.47967436]
[1736256196858,0.4339,3639.7,3639.6,3.48256]
[1736256197051,0.4339,3639.7,3639.6,4.47967436]
[1736256197461,2.59367347,3639.7,3639.6,4.47967436]
[1736256198558,0.4339,3639.7,3639.6,4.47967436]
[1736256200656,0.4203,3639.9,3639.6,4.20491436]
[1736256200956,0.4203,3639.9,3639.8,1.27186436]
[1736256201165,4.31981957,3640.0,3639.9,0.27474]
[1736256201959,0.4593,3640.1,3640.0,0.27473]
[1736256201960,5.19132286,3640.1,3640.0,0.27473]
[1736256202158,5.19132286,3640.1,3640.0,1.27184436]
[1736256202559,5.19132286,3640.1,3640.0,42.07184436]
[1736256203064,4.73202286,3640.1,3640.0,42.07184436]
[1736256203767,4.73202286,3640.1,3640.0,45.27964436]
[1736256204564,2.15942979,3640.1,3640.0,45.00491436]
[1736256204764,2.15942979,3640.1,3640.0,45.27964436]
[1736256206062,1.46832979,3640.1,3640.0,45.27964436]
[1736256207760,0.4217,3640.6,3640.3,0.27471]
[1736256207761,0.439,3640.4,3640.3,0.27471]
[1736256207970,3.23914469,3640.7,3640.5,0.27469]
[1736256208266,0.8607,3640.6,3640.5,0.27469]
[1736256208473,3.23914469,3640.7,3640.4,3.2078]
[1736256208765,3.23914469,3640.7,3640.6,0.27469]
[1736256209464,3.23914469,3640.7,3640.6,0.99711436]
[1736256209769,3.23914469,3640.7,3640.6,1.27180436]
[1736256210567,3.67834469,3640.8,3640.6,1.27180436]
[1736256210865,3.67834469,3640.8,3640.7,0.27468]
[1736256211465,3.23914469,3640.8,3640.7,0.27468]
[1736256211660,0.4155,3640.9,3640.8,0.27467]
[1736256211860,0.4155,3640.9,3640.8,1.27178436]
[1736256212264,0.4155,3640.9,3640.4,3.2078]
[1736256212469,0.4155,3640.9,3640.7,0.99711436]
[1736256212664,0.27468,3640.8,3640.7,0.99711436]
[1736256213360,0.4155,3640.9,3640.7,0.99711436]
[1736256213565,0.4155,3640.9,3640.7,1.27179436]
[1736256213773,0.4155,3640.9,3640.8,0.27467]
[1736256214170,3.65464469,3640.9,3640.8,0.27467]
[1736256215160,3.92931469,3640.9,3640.8,0.27467]
[1736256215367,4.06676808,3640.9,3640.8,0.27467]
[1736256217066,3.65464469,3640.9,3640.8,0.27467]
[1736256217863,3.65464469,3640.9,3640.8,3.48247]
[1736256218067,0.4155,3640.9,3640.8,3.48247]
[1736256218470,0.4155,3640.9,3640.8,44.28247]
[1736256218669,0.4155,3640.9,3640.8,41.07467]
[1736256219167,3.23914469,3641.1,3640.8,45.00491436]
[1736256219375,3.66234469,3641.1,3641.0,1.27177436]
[1736256219774,3.23914469,3641.1,3641.0,1.27177436]
[1736256219975,3.23914469,3641.1,3641.0,0.27466]
[1736256220378,3.23914469,3641.1,3641.0,1.27177436]
[1736256220676,3.23914469,3641.1,3640.9,3.2078]
[1736256220973,3.23914469,3641.1,3640.4,3.2078]
[1736256220974,0.4265,3641.0,3640.4,3.2078]
[1736256221178,0.4265,3641.0,3640.9,0.99711436]
[1736256221380,0.4265,3641.0,3640.9,2.20656193]
[1736256221574,0.27462,3641.5,3641.1,0.27465]
[1736256221875,1.12432,3641.5,3640.9,2.20656193]
[1736256222070,1.12432,3641.5,3641.2,2.20656193]
[1736256222071,0.8497,3641.5,3641.2,2.20656193]
[1736256222271,0.4505,3641.4,3641.2,0.27464]
[1736256222469,0.4505,3641.4,3641.0,41.07466]
[1736256222470,0.27464,3641.3,3641.0,41.07466]
[1736256222773,0.27464,3641.3,3641.0,40.8]
[1736256222971,0.27464,3641.3,3641.0,41.07466]
[1736256223569,0.27464,3641.3,3641.0,40.8]
[1736256223869,0.4505,3641.4,3640.9,0.27466]
[1736256224068,0.27465,3641.2,3640.9,0.27466]
[1736256224268,0.27464,3641.2,3641.0,0.27465]
[1736256224572,0.4431,3641.1,3641.0,0.27465]
[1736256224763,0.4505,3641.4,3640.6,2.20656193]
[1736256224967,0.8832,3641.4,3641.2,0.27464]
[1736256225168,0.8832,3641.4,3641.3,0.27464]
[1736256225675,0.4505,3641.4,3641.3,0.27464]
[1736256225974,1.3337,3641.4,3641.3,0.27464]
[1736256226174,3.23914469,3641.5,3641.4,0.27463]
[1736256226369,0.27461,3641.6,3641.5,0.27462]
[1736256226370,3.23914469,3641.6,3641.5,0.27462]
[1736256226564,3.51375469,3641.6,3641.5,0.27462]
[1736256226872,3.23914469,3641.6,3641.5,0.27462]
[1736256227371,3.23914469,3641.6,3641.5,2.48118193]
[1736256227570,3.65121058,3641.6,3641.5,2.48118193]
[1736256228372,3.65121058,3641.6,3641.5,43.28118193]